Entity,Date ,Expense Type,Expense Area,Supplier,Transaction Number,  Amount (�)  
South West Yorkshire NHS Foundation Trust,03-Jan-24,NHS Recharge,Wakefield,Mid Yorkshire Hospitals NHS Trust,1600025384,"2,000,000"
South West Yorkshire NHS Foundation Trust,10-Jan-24,Purchase of Healthcare,AS Collaborative,Cheswold Park Hospital,5314,"850,000"
South West Yorkshire NHS Foundation Trust,25-Jan-24,Purchase of Healthcare,AS Collaborative,Cheswold Park Hospital,5394,"769,090"
South West Yorkshire NHS Foundation Trust,09-Jan-24,Purchase of Healthcare,AS Collaborative,Nottinghamshire Healthcare NHS Trust,1000057670,"740,183"
South West Yorkshire NHS Foundation Trust,12-Jan-24,Purchase of Healthcare,AS Collaborative,Leeds & York Partnership NHS Foundation Trust,1000882,"680,394"
South West Yorkshire NHS Foundation Trust,31-Jan-24,Purchase of Healthcare,AS Collaborative,Bradford District Care NHS Foundation Trust,204059,"620,647"
South West Yorkshire NHS Foundation Trust,24-Jan-24,Purchase of Healthcare,AS Collaborative,Cheswold Park Hospital,5295,"596,300"
South West Yorkshire NHS Foundation Trust,18-Jan-24,Purchase of Healthcare,AS Collaborative,Cygnet Health Care Ltd,CYGWYS41CINV,"450,000"
South West Yorkshire NHS Foundation Trust,22-Jan-24,Purchase of Healthcare,AS Collaborative,Cygnet Health Care Ltd,CYGWYS42,"450,000"
South West Yorkshire NHS Foundation Trust,03-Jan-24,Purchase of Healthcare,AS Collaborative,Partnerships In Care Ltd,D200004757,"342,974"
South West Yorkshire NHS Foundation Trust,11-Jan-24,Purchase of Healthcare,AS Collaborative,Sheffield Health & Social Care NHS Foundation Trust,0000000338,"319,139"
South West Yorkshire NHS Foundation Trust,11-Jan-24,Purchase of Healthcare,AS Collaborative,Sheffield Health & Social Care NHS Foundation Trust,0000000358,"319,139"
South West Yorkshire NHS Foundation Trust,11-Jan-24,Purchase of Healthcare,AS Collaborative,Sheffield Health & Social Care NHS Foundation Trust,0000000443,"319,139"
South West Yorkshire NHS Foundation Trust,26-Jan-24,Purchase of Healthcare,AS Collaborative,Cygnet Health Care Ltd,CYGSYS19,"270,000"
South West Yorkshire NHS Foundation Trust,10-Jan-24,Purchase of Healthcare,AS Collaborative,Waterloo Manor Ltd,HO NHS LS 280,"251,416"
South West Yorkshire NHS Foundation Trust,11-Jan-24,Purchase of Healthcare,AS Collaborative,Rotherham Doncaster & South Humber NHS Foundation Trust,4400000920,"232,254"
South West Yorkshire NHS Foundation Trust,12-Jan-24,Staff Recharge,Trustwide,Mid Yorkshire Hospitals NHS Trust,1600024862,"202,992"
South West Yorkshire NHS Foundation Trust,12-Jan-24,Staff Recharge,Trustwide,Mid Yorkshire Hospitals NHS Trust,1600025070,"202,992"
South West Yorkshire NHS Foundation Trust,12-Jan-24,Staff Recharge,Trustwide,Mid Yorkshire Hospitals NHS Trust,1600025264,"202,992"
South West Yorkshire NHS Foundation Trust,02-Jan-24,Purchase of Healthcare,Kirklees,Northpoint Wellbeing Ltd,RGA15206,"198,350"
South West Yorkshire NHS Foundation Trust,03-Jan-24,Computer Software,Trustwide,Insight Direct (Uk) Ltd,2100777431,"160,313"
South West Yorkshire NHS Foundation Trust,24-Jan-24,Purchase of Healthcare,AS Collaborative,Cheswold Park Hospital,5393,"151,767"
South West Yorkshire NHS Foundation Trust,04-Jan-24,Purchase of Healthcare,AS Collaborative,Cheswold Park Hospital,5312,"138,458"
South West Yorkshire NHS Foundation Trust,03-Jan-24,Purchase of Healthcare,AS Collaborative,Partnerships In Care Ltd,D200004708,"128,035"
South West Yorkshire NHS Foundation Trust,16-Jan-24,Purchase of Healthcare,AS Collaborative,Cheswold Park Hospital,5126,"125,412"
South West Yorkshire NHS Foundation Trust,10-Jan-24,Purchase of Healthcare,Barnsley,Elysium Healthcare Ltd,STM03368,"117,574"
South West Yorkshire NHS Foundation Trust,22-Jan-24,NHS Recharge,Barnsley,Barnsley Hospital NHS Foundation Trust,6027450,"106,647"
South West Yorkshire NHS Foundation Trust,11-Jan-24,Purchase of Healthcare,AS Collaborative,Sheffield Health & Social Care NHS Foundation Trust,0000000359,"93,248"
South West Yorkshire NHS Foundation Trust,08-Jan-24,IT Services,Trustwide,Daisy Corporate Services,3I520413,"90,250"
South West Yorkshire NHS Foundation Trust,03-Jan-24,NHS Recharge,Calderdale,Calderdale & Huddersfield NHS Foundation Trust,4710178858,"87,514"
South West Yorkshire NHS Foundation Trust,23-Jan-24,NHS Recharge,Calderdale,Calderdale & Huddersfield NHS Foundation Trust,4710178988,"87,514"
South West Yorkshire NHS Foundation Trust,09-Jan-24,Purchase of Healthcare,AS Collaborative,Cygnet Health Care Ltd,WYS040INV,"83,554"
South West Yorkshire NHS Foundation Trust,19-Jan-24,Drugs,Trustwide,Lp Hcs Ltd,SIH000159,"77,539"
South West Yorkshire NHS Foundation Trust,02-Jan-24,Purchase of Healthcare,Kirklees,Socrates Clinical Psychology Ltd,SPS09265RMD9265,"74,400"
South West Yorkshire NHS Foundation Trust,08-Jan-24,Drugs,Trustwide,Lp Hcs Ltd,SIH000053,"72,990"
South West Yorkshire NHS Foundation Trust,18-Jan-24,Staff Recharge,Forensics,Wakefield Metropolitan District Council,91315468661,"70,898"
South West Yorkshire NHS Foundation Trust,17-Jan-24,Purchase of Healthcare,Kirklees,Socrates Clinical Psychology Ltd,SPS09382RMD9382,"69,600"
South West Yorkshire NHS Foundation Trust,05-Jan-24,Purchase of Healthcare,Kirklees,My Happy Mind Ltd,1560,"66,776"
South West Yorkshire NHS Foundation Trust,12-Jan-24,Purchase of Healthcare,AS Collaborative,Leeds & York Partnership NHS Foundation Trust,1000880,"66,273"
South West Yorkshire NHS Foundation Trust,24-Jan-24,NHS Recharge,Barnsley,Barnsley Hospital NHS Foundation Trust,6027467,"61,332"
South West Yorkshire NHS Foundation Trust,30-Jan-24,Drugs,Trustwide,Bradford Teaching Hospitals NHS Foundation Trust,325813,"59,658"
South West Yorkshire NHS Foundation Trust,29-Jan-24,Purchase of Healthcare,AS Collaborative,Elysium Healthcare Ltd,NCO2000007301,"56,000"
South West Yorkshire NHS Foundation Trust,11-Jan-24,Utilities,Trustwide,Edf Energy Customers Ltd,000017806671,"51,497"
South West Yorkshire NHS Foundation Trust,22-Jan-24,Consultancy,Trustwide,Business Services Leeds Ltd,BSL08185,"50,000"
South West Yorkshire NHS Foundation Trust,02-Jan-24,IT Services,Trustwide,Daisy Corporate Services,3I520237,"49,986"
South West Yorkshire NHS Foundation Trust,08-Jan-24,Computer Hardware,Trustwide,Dell Corporation Ltd,7402973275,"47,400"
South West Yorkshire NHS Foundation Trust,08-Jan-24,Computer Hardware,Trustwide,Dell Corporation Ltd,7402973276,"47,400"
South West Yorkshire NHS Foundation Trust,08-Jan-24,Computer Hardware,Trustwide,Dell Corporation Ltd,7402973277,"47,400"
South West Yorkshire NHS Foundation Trust,08-Jan-24,Computer Hardware,Trustwide,Dell Corporation Ltd,7402973278,"47,400"
South West Yorkshire NHS Foundation Trust,08-Jan-24,Computer Hardware,Trustwide,Dell Corporation Ltd,7402973279,"47,400"
South West Yorkshire NHS Foundation Trust,08-Jan-24,Computer Hardware,Trustwide,Dell Corporation Ltd,7402973280,"47,400"
South West Yorkshire NHS Foundation Trust,08-Jan-24,Computer Hardware,Trustwide,Dell Corporation Ltd,7402973281,"47,400"
South West Yorkshire NHS Foundation Trust,08-Jan-24,Computer Hardware,Trustwide,Dell Corporation Ltd,7402973300,"47,400"
South West Yorkshire NHS Foundation Trust,08-Jan-24,Computer Hardware,Trustwide,Dell Corporation Ltd,7402973326,"47,400"
South West Yorkshire NHS Foundation Trust,09-Jan-24,Purchase of Healthcare,AS Collaborative,Mersey Care NHS Foundation Trust,72486550,"47,313"
South West Yorkshire NHS Foundation Trust,11-Jan-24,Purchase of Healthcare,AS Collaborative,Sheffield Health & Social Care NHS Foundation Trust,0000000444,"46,624"
South West Yorkshire NHS Foundation Trust,08-Jan-24,Computer Hardware,Trustwide,Dell Corporation Ltd,7402973301,"46,452"
South West Yorkshire NHS Foundation Trust,22-Jan-24,Purchase of Healthcare,AS Collaborative,Sheffield Childrens NHS Foundation Trust,2400002794,"45,894"
South West Yorkshire NHS Foundation Trust,17-Jan-24,Purchase of Healthcare,AS Collaborative,Elysium Healthcare Ltd,ARB05494,"45,239"
South West Yorkshire NHS Foundation Trust,10-Jan-24,Purchase of Healthcare,Wakefield,Nova Wakefield District Ltd,1520,"43,658"
South West Yorkshire NHS Foundation Trust,13-Jan-24,Purchase of Healthcare,Barnsley,Elysium Healthcare Ltd,FDN01068,"42,898"
South West Yorkshire NHS Foundation Trust,15-Jan-24,Purchase of Healthcare,Forensics,Sheffield Childrens NHS Foundation Trust,2400002667,"42,605"
South West Yorkshire NHS Foundation Trust,22-Jan-24,Purchase of Healthcare,AS Collaborative,Sheffield Childrens NHS Foundation Trust,2400002794,"39,210"
South West Yorkshire NHS Foundation Trust,22-Jan-24,Purchase of Healthcare,Kirklees,Nouvita Ltd,11191,"37,944"
South West Yorkshire NHS Foundation Trust,03-Jan-24,Purchase of Healthcare,AS Collaborative,Partnerships In Care Ltd,D190001126EPC,"37,587"
South West Yorkshire NHS Foundation Trust,04-Jan-24,Purchase of Healthcare,Kirklees,Nouvita Ltd,11057,"37,281"
South West Yorkshire NHS Foundation Trust,03-Jan-24,Purchase of Healthcare,AS Collaborative,Partnerships In Care Ltd,D190001107EPC,"36,374"
South West Yorkshire NHS Foundation Trust,15-Jan-24,Purchase of Healthcare,AS Collaborative,Cheswold Park Hospital,5347,"35,877"
South West Yorkshire NHS Foundation Trust,15-Jan-24,Computer Software,Trustwide,Thirsty Horses Ltd,INV0430,"35,370"
South West Yorkshire NHS Foundation Trust,03-Jan-24,Mobile Phones,Trustwide,Vodafone Ltd,105089755,"35,190"
South West Yorkshire NHS Foundation Trust,03-Jan-24,Mobile Phones,Trustwide,Vodafone Ltd,104920671,"34,803"
South West Yorkshire NHS Foundation Trust,22-Jan-24,Purchase of Healthcare,AS Collaborative,Sheffield Childrens NHS Foundation Trust,2400002794,"31,718"
South West Yorkshire NHS Foundation Trust,10-Jan-24,NHS Recharge,Barnsley,Barnsley Hospital NHS Foundation Trust,6027411,"31,204"
South West Yorkshire NHS Foundation Trust,12-Jan-24,Staff Recharge,Trustwide,Leeds & York Partnership NHS Foundation Trust,1000918,"30,853"
South West Yorkshire NHS Foundation Trust,18-Jan-24,Purchase of Healthcare,AS Collaborative,Elysium Healthcare Ltd,ARB05496,"30,518"
South West Yorkshire NHS Foundation Trust,15-Jan-24,Staff Recharge,Kirklees,Locala Community Partnerships C.I.C,A0016676,"30,327"
South West Yorkshire NHS Foundation Trust,22-Jan-24,Utilities,Trustwide,Totalenergies Gas & Power Ltd,32725567024,"30,126"
South West Yorkshire NHS Foundation Trust,23-Jan-24,NHS Recharge,Barnsley,Barnsley Hospital NHS Foundation Trust,6027451,"30,057"
South West Yorkshire NHS Foundation Trust,11-Jan-24,Staff Recharge,Trustwide,Sugarman Group Ltd,SG0001445,"29,607"
South West Yorkshire NHS Foundation Trust,29-Jan-24,Purchase of Healthcare,AS Collaborative,Leeds & York Partnership NHS Foundation Trust,1000884,"28,812"
South West Yorkshire NHS Foundation Trust,17-Jan-24,Purchase of Healthcare,AS Collaborative,Cheswold Park Hospital,5047,"28,557"
South West Yorkshire NHS Foundation Trust,22-Jan-24,Purchase of Healthcare,AS Collaborative,Sheffield Childrens NHS Foundation Trust,2400002794,"28,160"
South West Yorkshire NHS Foundation Trust,11-Jan-24,Utilities,Trustwide,Edf Energy Customers Ltd,000017796142,"27,573"
South West Yorkshire NHS Foundation Trust,08-Jan-24,Computer Hardware,Trustwide,Dell Corporation Ltd,7402973576,"26,742"
South West Yorkshire NHS Foundation Trust,24-Jan-24,Purchase of Healthcare,AS Collaborative,Cheswold Park Hospital,5328,"26,680"
South West Yorkshire NHS Foundation Trust,22-Jan-24,Purchase of Healthcare,AS Collaborative,Sheffield Childrens NHS Foundation Trust,2400002794,"25,569"
South West Yorkshire NHS Foundation Trust,05-Jan-24,Software licence,Trustwide,Hydrop Environmental Consultancy Services,IV26051,"25,535"
South West Yorkshire NHS Foundation Trust,24-Jan-24,Purchase of Healthcare,AS Collaborative,Elysium Healthcare Ltd,ARB05553,"25,133"
